bitfinex/quotes_SOLUSD_20250517
["timestamp","ask_amount","ask_price","bid_price","bid_amount"]
[1747447068784,6.06273751,164.95,164.88,24.71452462]
[1747447068984,18.44653551,164.95,164.88,24.71452462]
[1747447069614,12.383798,164.96,164.88,39.87706707]
[1747447069785,30.8,164.97,164.91,26.0]
[1747447070407,30.8,164.97,164.92,18.64964886]
[1747447070613,12.383798,164.96,164.91,26.0]
[1747447070786,12.383798,164.94,164.89,1.5073]
[1747447072217,18.44679673,164.94,164.89,1.5073]
[1747447073311,6.06299873,164.94,164.89,1.5073]
[1747447073488,18.44679673,164.94,164.89,1.5073]
[1747447074117,6.06299873,164.94,164.89,1.5073]
[1747447074321,18.44679673,164.94,164.89,1.5073]
[1747447075517,12.383798,164.97,164.9,44.64964886]
[1747447075815,18.44477139,164.99,164.9,44.64964886]
[1747447075998,12.383798,164.99,164.9,44.64964886]
[1747447076200,116.38992904,165.04,164.94,18.64964886]
[1747447076201,18.44374865,165.02,164.94,18.64964886]
[1747447076510,6.05995065,165.02,164.94,18.64964886]
[1747447076707,36.85961582,165.03,164.94,18.64964886]
[1747447076897,15.14737011,165.05,164.94,18.64964886]
[1747447076898,12.383798,165.04,164.98,18.64964886]
[1747447077102,30.0,164.99,164.98,18.64964886]
[1747447077290,12.383798,165.04,164.98,18.64964886]
[1747447077688,18.44303161,165.04,164.98,24.71097246]
[1747447078424,18.44303161,165.04,164.97,33.67969701]
[1747447078721,12.383798,165.02,164.97,1.6181]
[1747447079318,21.20707655,165.04,164.94,18.64964886]
[1747447079319,12.383798,165.01,164.94,18.64964886]
[1747447079497,12.383798,164.99,164.93,1.6181]
[1747447080026,6.06134076,164.98,164.93,1.6181]
[1747447080389,12.383798,164.95,164.89,7.68265508]
[1747447080629,12.383798,164.95,164.89,33.68265508]
[1747447080813,12.383798,164.95,164.89,7.68265508]
[1747447081330,12.383798,164.91,164.85,1.5504]
[1747447081512,12.383798,164.9,164.85,1.5504]
[1747447081831,12.383798,164.9,164.85,33.61648375]
[1747447082138,12.383798,164.91,164.85,1.5504]
[1747447082695,6.06317831,164.93,164.85,7.6164904]
[1747447083000,12.383798,164.92,164.85,7.6164904]
[1747447083514,12.383798,164.92,164.86,26.0]
[1747447083815,6.06317831,164.93,164.86,26.0]
[1747447084004,12.383798,164.96,164.89,18.64964886]
[1747447084720,12.383798,164.94,164.87,24.71494484]
[1747447084929,12.383798,164.94,164.87,6.06529598]
[1747447085233,18.44587365,164.96,164.88,18.64964886]
[1747447086023,18.44587365,164.96,164.86,69.44406327]
[1747447086024,12.383798,164.92,164.86,54.28]
[1747447086226,44.44587365,164.96,164.86,54.28]
[1747447086227,12.383798,164.91,164.86,54.28]
[1747447086433,12.383798,164.9,164.86,28.28]
[1747447087419,12.383798,164.91,164.86,28.28]
[1747447088027,18.44807938,164.9,164.86,28.28]
[1747447088625,6.06428138,164.9,164.86,28.28]
[1747447089527,15.15806075,164.93,164.86,28.28]
[1747447089528,18.44734396,164.92,164.86,28.28]
[1747447089920,6.06354596,164.92,164.86,28.28]
[1747447090145,6.06354596,164.92,164.86,54.28]
[1747447091249,18.44734396,164.92,164.86,54.28]
[1747447092726,12.383798,164.9,164.86,28.28]
[1747447092924,12.383798,164.91,164.86,28.28]
[1747447093839,12.383798,164.9,164.86,28.28]
[1747447094206,12.383798,164.91,164.86,28.28]
[1747447094720,6.06428138,164.9,164.86,28.28]
[1747447095249,18.44660871,164.94,164.86,34.34570622]
[1747447095434,6.06281071,164.94,164.86,34.34570622]
[1747447095748,6.06281071,164.94,164.88,26.0]
[1747447095910,18.44660871,164.94,164.88,26.0]
[1747447096610,18.44660871,164.94,164.86,6.06570622]
[1747447096804,12.383798,164.93,164.86,44.64964886]
[1747447097216,6.06281071,164.94,164.86,44.64964886]
[1747447097421,18.44660871,164.94,164.86,44.64964886]
[1747447097712,6.06281071,164.94,164.87,6.06538484]
[1747447099048,36.86256003,164.95,164.87,6.06538484]
[1747447099227,30.8,165.0,164.91,18.64964886]
[1747447099414,30.8,164.99,164.91,25.10314886]
[1747447099616,30.8,164.99,164.93,18.64964886]
[1747447099838,21.20632064,165.05,164.95,18.64964886]
[1747447100042,6.05877006,165.05,164.97,18.64964886]
[1747447101557,6.05877006,165.05,164.97,24.71098985]
[1747447101729,12.383798,165.03,164.96,26.0]
[1747447101935,12.383798,165.03,164.96,32.06194264]
[1747447102241,18.44256806,165.05,164.97,18.64964886]
[1747447102422,6.05877006,165.05,164.97,18.64964886]
[1747447103538,56.8,165.09,164.99,18.64964886]
[1747447103745,6.057669,165.08,165.01,18.64964886]
[1747447103952,12.383798,165.1,165.01,18.64964886]
[1747447104346,15.14182599,165.11,165.01,18.64964886]
[1747447104551,12.383798,165.1,165.01,18.64964886]
[1747447104865,18.44073319,165.1,165.02,6.05987153]
[1747447105031,18.44073319,165.1,165.02,32.05987153]
[1747447107455,18.44073319,165.1,165.03,24.70892203]
[1747447107666,12.383798,165.11,165.03,24.70892203]
[1747447107960,36.85592317,165.13,165.03,24.70892203]
[1747447108168,6.05592317,165.13,165.06,26.0]
[1747447109266,18.43972117,165.13,165.06,32.05829582]
[1747447110166,6.05592317,165.13,165.07,24.70761816]
[1747447110641,12.383798,165.14,165.07,24.70761816]
[1747447110966,12.32265497,165.14,165.07,24.70761816]
[1747447111470,18.43889942,165.15,165.07,24.70761816]
[1747447111777,6.05510142,165.15,165.08,1.5045]
[1747447111948,18.43889942,165.15,165.08,1.5045]
[1747447112273,21.19285497,165.15,165.08,1.5045]
[1747447112464,21.19285497,165.15,165.06,26.0]
[1747447112651,12.383798,165.12,165.06,26.0]
[1747447112967,12.383798,165.1,165.04,1.5045]
[1747447113143,30.8,165.14,165.04,1.5045]
[1747447113477,12.383798,165.12,165.04,7.56356098]
[1747447113637,12.383798,165.11,165.04,7.56356098]
[1747447114067,12.383798,165.11,165.04,1.5045]
[1747447114248,12.383798,165.07,165.01,18.64964886]
[1747447114454,12.383798,165.07,165.02,26.0]
[1747447114847,12.383798,165.06,165.0,1.5045]
[1747447115593,12.383798,165.04,165.0,1.5045]
[1747447115746,12.383798,165.02,164.95,7.56694316]
[1747447116079,12.383798,165.02,164.96,26.0]
[1747447116243,30.8,165.06,164.96,26.0]
[1747447116244,18.4434892,165.03,164.96,32.06173987]
[1747447116646,12.383798,165.02,164.96,26.0]
[1747447117175,12.383798,165.02,164.96,32.06204805]
[1747447117552,12.383798,165.02,164.96,26.0]
[1747447117874,12.383798,165.01,164.95,20.15414886]
[1747447118243,12.383798,165.01,164.95,1.5045]
[1747447118439,12.383798,165.01,164.93,27.9]
[1747447118440,12.383798,164.97,164.93,27.9]
[1747447119887,30.27734043,165.14,165.01,26.0]
[1747447120180,12.383798,165.06,165.01,26.0]
[1747447120366,12.383798,165.05,165.01,26.0]
[1747447120556,12.383798,165.03,164.98,13.87780835]
[1747447120882,12.383798,165.02,164.98,1.5045]
[1747447121460,12.383798,165.01,164.96,6.06176623]
[1747447121854,6.0584204,165.06,164.96,6.06176623]
[1747447122153,12.383798,165.05,164.97,18.64964886]
[1747447122354,26.0,165.08,165.0,6.06060606]
[1747447122555,12.383798,165.07,165.0,6.06060606]
[1747447123773,12.383798,165.06,164.99,26.0]
[1747447123982,12.383798,165.05,164.99,26.0]
[1747447124659,12.383798,165.05,165.0,6.06060606]
[1747447126691,18.44233931,165.06,164.99,24.71062225]
[1747447128271,12.383798,165.05,164.99,24.71062225]
[1747447128589,12.383798,165.06,164.99,24.71062225]
[1747447128761,12.383798,165.05,164.99,24.71062225]
[1747447129252,6.05803598,165.07,164.99,24.71062225]
[1747447129453,18.44257364,165.05,164.99,24.71062225]
[1747447131486,12.383798,165.04,164.98,32.06133345]
[1747447132096,6.05877564,165.05,164.98,26.0]
[1747447132460,6.05877564,165.05,164.99,18.64964886]
[1747447133059,43.183798,165.07,165.0,6.06060606]
[1747447133667,49.24184882,165.07,165.0,6.06060606]
[1747447133964,12.383798,165.06,164.99,24.71051602]
[1747447134497,36.85805082,165.07,164.99,24.71051602]
[1747447134896,18.44233876,165.06,164.99,24.71051602]
[1747447135698,12.383798,165.05,164.99,18.64964886]
[1747447136001,12.383798,165.04,164.98,26.0]
[1747447136887,12.383798,165.04,164.98,32.06124604]
[1747447137901,18.44300129,165.04,164.98,32.06124604]
[1747447138202,18.44300129,165.04,164.98,26.0]
[1747447138509,12.383798,165.03,164.98,26.0]
[1747447138882,6.05987153,165.02,164.98,26.0]
[1747447139500,18.44333714,165.03,164.98,26.0]
[1747447139689,6.05953914,165.03,164.98,26.0]
[1747447140607,12.383798,165.01,164.94,41.46990632]
[1747447140815,12.383798,164.99,164.94,35.4072]
[1747447140979,18.44509171,164.99,164.94,35.4072]
[1747447144430,18.44509171,164.99,164.94,29.0952]
[1747447144431,12.383798,164.97,164.94,29.0952]
[1747447144719,12.383798,164.97,164.94,27.56]
[1747447144918,12.383798,164.98,164.94,27.56]
[1747447145927,12.383798,164.95,164.9,8.0087]
[1747447146109,12.383798,164.95,164.9,34.0087]
[1747447146607,26.0,165.01,164.91,18.64964886]
[1747447146794,30.8,165.0,164.91,18.64964886]
[1747447146995,12.383798,164.99,164.91,18.64964886]
[1747447147194,18.44366953,165.02,164.95,18.64964886]
[1747447147435,6.05877006,165.05,164.98,26.0]
[1747447147735,18.44256806,165.05,164.98,34.053]
[1747447148630,12.383798,165.01,164.95,72.20964886]
[1747447148811,12.383798,165.0,164.95,53.56]
[1747447148998,12.383798,165.0,164.95,27.56]
[1747447149201,12.383798,165.0,164.94,8.053]
[1747447149519,12.383798,164.99,164.94,8.053]
[1747447149721,12.383798,165.0,164.94,8.053]
[1747447149926,12.383798,165.0,164.94,14.11577299]
[1747447150222,30.8,165.03,164.95,18.64964886]
[1747447150423,12.383798,165.06,164.99,6.06097339]
[1747447150613,18.44183398,165.07,165.0,18.64964886]
[1747447151023,6.05803598,165.07,165.0,18.64964886]
[1747447151334,18.44183398,165.07,165.0,18.64964886]
[1747447151830,18.44183398,165.07,165.0,24.70995115]
[1747447152146,18.44183398,165.07,165.01,1.5631]
[1747447152310,18.44156599,165.08,165.01,1.5631]
[1747447152512,18.44116889,165.09,165.02,18.64964886]
[1747447153938,18.44116889,165.09,165.03,6.05950433]
[1747447154318,18.44116889,165.09,165.02,24.70943517]
[1747447154521,6.05737089,165.09,165.02,24.70943517]
[1747447154730,18.44116889,165.09,165.02,24.70943517]
[1747447154926,12.383798,165.1,165.02,24.70943517]
[1747447155913,6.05730207,165.09,165.02,24.70943517]
[1747447156139,18.44110007,165.09,165.02,24.70943517]
[1747447156717,12.383798,165.05,165.01,7.8965]
[1747447157044,12.383798,165.06,165.01,7.8965]
[1747447157217,12.383798,165.07,165.01,7.8965]
[1747447157943,12.383798,165.08,165.02,18.64964886]
[1747447158242,6.05803598,165.07,165.02,18.64964886]
[1747447158821,6.05803598,165.07,165.01,13.95659645]
[1747447158822,12.383798,165.06,165.01,7.8965]
[1747447159742,6.05803598,165.07,165.01,7.8965]
[1747447159743,12.383798,165.05,165.01,7.8965]
[1747447159919,12.383798,165.03,164.97,8.125]
[1747447160122,12.383798,165.02,164.97,8.125]
[1747447160347,6.06023877,165.01,164.97,8.125]
[1747447160749,6.05996986,165.02,164.97,8.125]
[1747447160935,6.05996986,165.02,164.97,14.186693]
[1747447161428,6.0596169,165.03,164.98,18.64964886]
[1747447161620,18.44302772,165.04,164.98,18.64964886]
[1747447161832,18.442201,165.06,164.98,18.64964886]
[1747447162755,18.442201,165.06,164.99,6.06097339]
[1747447163122,12.383798,165.05,164.98,24.71089537]
[1747447163526,12.383798,165.02,164.97,8.125]
[1747447164037,12.383798,165.0,164.97,1.5237]
[1747447164240,26.0,165.03,164.93,7.8718]
[1747447164241,12.383798,164.99,164.93,7.8718]
[1747447164428,12.383798,164.99,164.93,33.8718]
[1747447164945,6.06134076,164.98,164.93,7.8718]
[1747447165254,18.44513876,164.98,164.93,33.8718]
[1747447165729,6.06134076,164.98,164.93,33.8718]
[1747447166125,18.44513876,164.98,164.93,7.8718]
[1747447166752,6.06134076,164.98,164.93,7.8718]
[1747447166952,18.44472389,165.0,164.94,18.64964886]
[1747447167123,12.383798,165.01,164.94,44.64964886]
[1747447167320,12.383798,165.02,164.94,50.71228211]
[1747447167525,18.44330233,165.03,164.94,50.71228211]
[1747447167730,6.05950433,165.03,164.94,50.71228211]
[1747447168058,6.05950433,165.03,164.98,18.64964886]
[1747447168234,6.05910963,165.05,164.98,18.64964886]
[1747447168557,18.44290763,165.05,164.98,18.64964886]
[1747447168934,6.05910963,165.05,164.99,1.5774]
[1747447169255,18.44290763,165.05,164.99,1.5774]
[1747447175363,18.44290763,165.05,165.0,18.64964886]
[1747447175564,6.05850821,165.06,165.0,24.7101785]
[1747447177168,6.057669,165.08,165.01,6.6602]
[1747447177343,12.383798,165.09,165.01,6.6602]
[1747447177678,12.383798,165.06,165.01,6.6602]
[1747447177895,12.383798,165.05,164.99,1.5774]
[1747447179171,6.05913717,165.04,164.99,1.5774]
[1747447179372,12.383798,165.06,164.99,7.63823638]
[1747447179763,41.14438036,165.08,164.99,1.5774]
[1747447179764,18.44268319,165.05,164.99,1.5774]
[1747447180369,12.383798,165.04,164.99,1.5774]
[1747447181567,18.44318713,165.04,164.99,1.5774]
[1747447181976,6.05938913,165.04,164.99,1.5774]
[1747447182151,6.05938913,165.04,164.99,7.63830112]
[1747447182471,6.05938913,165.04,164.99,1.5774]
[1747447183652,9.28842054,165.21,165.05,26.0]
[1747447183859,12.383798,165.14,165.07,44.64964886]
[1747447184065,12.383798,165.14,165.07,98.44964886]
[1747447184260,26.0,165.18,165.07,98.44964886]
[1747447184448,12.383798,165.15,165.07,98.44964886]
[1747447184966,12.383798,165.15,165.07,104.50755858]
[1747447186947,12.383798,165.13,165.07,104.44755858]
[1747447187591,12.383798,165.12,165.07,77.58755858]
[1747447187958,12.383798,165.13,165.07,77.58755858]
[1747447189892,12.383798,165.14,165.07,77.58755858]
[1747447190555,12.383798,165.13,165.07,50.70755858]
[1747447190756,12.383798,165.1,165.05,79.7]
[1747447191454,12.383798,165.11,165.05,79.7]
[1747447191649,12.383798,165.13,165.06,18.64964886]
[1747447191855,18.43949045,165.14,165.06,18.64964886]
[1747447192674,26.0,165.16,165.07,6.05803598]
[1747447192875,12.383798,165.14,165.07,6.05803598]
[1747447193381,12.383798,165.15,165.07,6.05803598]
[1747447193893,17.83347109,165.15,165.07,6.05803598]
[1747447194061,17.83372704,165.14,165.08,18.64964886]
[1747447194262,12.383798,165.13,165.07,6.05803598]
[1747447195171,12.383798,165.13,165.06,24.70796245]
[1747447196081,17.83419057,165.13,165.06,24.70796245]
[1747447196980,12.383798,165.12,165.06,18.64964886]
[1747447198184,17.8348679,165.11,165.05,32.05874624]
[1747447198774,5.4510699,165.11,165.05,32.05874624]
[1747447199162,12.383798,165.12,165.06,18.64964886]
[1747447200274,30.8,165.15,165.06,24.70786689]
[1747447200481,43.183798,165.15,165.06,24.70786689]
[1747447200787,12.383798,165.12,165.06,18.64964886]
[1747447200972,12.383798,165.11,165.05,32.05863973]
[1747447201172,5.45003155,165.14,165.06,18.64964886]
[1747447201398,12.383798,165.13,165.06,18.64964886]
[1747447201696,12.383798,165.11,165.05,26.0]
[1747447201902,12.383798,165.12,165.06,18.64964886]
[1747447202082,12.383798,165.13,165.06,18.64964886]
[1747447202281,12.383798,165.13,165.06,24.70783304]
[1747447202872,12.383798,165.12,165.06,18.64964886]
[1747447203386,7.74511121,165.12,165.06,18.64964886]
[1747447203595,7.74511121,165.12,165.06,24.7080482]
[1747447203797,7.74511121,165.13,165.06,24.7080482]
[1747447203973,5.44992127,165.14,165.06,24.7080482]
[1747447204177,30.8,165.15,165.1,20.26114886]
[1747447204395,7.74511121,165.18,165.1,20.26114886]
[1747447205276,5.44827168,165.19,165.1,20.26114886]
[1747447205473,17.83231211,165.19,165.1,20.26114886]
[1747447205679,17.83231211,165.19,165.12,18.64964886]
[1747447205877,5.44827168,165.19,165.12,44.64964886]
[1747447206201,5.44695273,165.23,165.16,24.70423416]
[1747447206798,12.38404043,165.18,165.12,26.88]
[1747447206993,12.38404043,165.16,165.1,1.6115]
[1747447207293,12.38404043,165.15,165.1,1.6115]
[1747447207887,26.0,165.19,165.1,1.6115]
[1747447207888,12.38404043,165.14,165.1,1.6115]
[1747447208199,12.38404043,165.15,165.1,1.6115]
[1747447208572,5.44992127,165.14,165.1,1.6115]
[1747447210205,5.44992127,165.14,165.07,18.64964886]
[1747447210206,12.38404043,165.11,165.07,26.0]
[1747447210580,5.45124167,165.1,165.05,1.5886]
[1747447210792,27.22726995,165.28,165.07,6.4074]
[1747447211105,12.38404043,165.21,165.14,1.5886]
[1747447211774,5.44827168,165.19,165.14,1.5886]
[1747447211970,12.38404043,165.18,165.14,1.5886]
[1747447212172,17.83231211,165.19,165.14,1.5886]
[1747447212587,12.38404043,165.17,165.11,18.64964886]
[1747447213207,12.38404043,165.14,165.1,1.5886]
[1747447213374,12.38404043,165.15,165.1,1.5886]
[1747447214003,5.44912511,165.17,165.1,1.5886]
[1747447214186,12.38404043,165.16,165.1,1.5886]
[1747447214388,5.44850198,165.19,165.1,7.64550084]
[1747447214789,12.38404043,165.19,165.11,44.64964886]
[1747447214981,5.4476106,165.22,165.11,44.64964886]
[1747447215303,12.38404043,165.22,165.12,6.4074]
[1747447215918,12.38404043,165.23,165.16,26.0]
[1747447216085,12.38404043,165.24,165.17,18.64964886]
[1747447216290,12.38404043,165.25,165.17,18.64964886]
[1747447216884,12.38404043,165.24,165.17,18.64964886]
[1747447217218,17.83057109,165.25,165.18,6.05400169]
[1747447217427,12.03294958,165.27,165.18,6.05400169]
[1747447217721,12.38404043,165.29,165.21,26.0]
[1747447217919,6.1263,165.32,165.22,18.64964886]
[1747447218217,12.38404043,165.32,165.22,18.64964886]
[1747447218401,12.38404043,165.3,165.2,6.1019]
[1747447218609,12.38404043,165.29,165.23,26.0]
[1747447218999,12.38404043,165.27,165.2,32.1019]
[1747447219200,5.44629349,165.25,165.17,1.5408]
[1747447219512,5.44629349,165.25,165.17,7.59514942]
[1747447219703,5.44629349,165.25,165.17,33.59514942]
[1747447219919,17.83033392,165.25,165.17,33.59514942]
[1747447220999,5.44629349,165.25,165.17,1.5408]
[1747447221206,12.38404043,165.22,165.17,1.5408]
[1747447221419,12.38404043,165.23,165.17,1.5408]
[1747447222435,12.38404043,165.2,165.12,28.1456]
[1747447222733,12.38404043,165.19,165.12,34.20170701]
[1747447222898,12.38404043,165.19,165.12,28.1456]
[1747447223100,5.44860152,165.18,165.12,28.1456]
[1747447223642,12.38404043,165.14,165.08,1.6056]
[1747447223847,12.38404043,165.16,165.09,26.0]
[1747447224003,5.44860152,165.18,165.11,26.0]
[1747447224349,5.44795463,165.2,165.12,18.64964886]
[1747447224506,17.83199506,165.2,165.12,18.64964886]
[1747447224843,12.38404043,165.18,165.13,26.0]
[1747447225013,17.83199506,165.2,165.13,18.64964886]
[1747447225199,5.44728241,165.22,165.13,18.64964886]
[1747447225530,5.44728241,165.22,165.15,18.64964886]
[1747447225705,5.44728241,165.22,165.16,1.6056]
[1747447227939,5.44728241,165.22,165.16,7.66021556]
[1747447228513,5.44698885,165.23,165.17,18.64964886]
[1747447229113,5.44662309,165.24,165.17,18.64964886]
[1747447230228,12.38404043,165.23,165.16,1.6056]
[1747447231133,5.44728241,165.22,165.16,1.6056]
[1747447231432,17.83132284,165.22,165.16,1.6056]
[1747447232333,5.44728241,165.22,165.16,7.66027462]
[1747447233225,5.44695273,165.23,165.16,7.66027462]
[1747447233429,17.83099316,165.23,165.16,1.6056]
[1747447233933,12.38404043,165.22,165.16,1.6056]
[1747447234130,12.38404043,165.21,165.16,1.6056]
[1747447235129,5.44695273,165.23,165.16,1.6056]
[1747447235312,19.06233888,165.25,165.16,7.66013366]
[1747447235627,12.38404043,165.22,165.16,1.6056]
[1747447235826,12.38404043,165.21,165.16,1.6056]
[1747447236234,12.38404043,165.22,165.16,1.6056]
[1747447236532,5.44761213,165.21,165.16,1.6056]
[1747447238041,5.44738939,165.22,165.16,7.66030709]
[1747447238241,5.44629349,165.25,165.19,18.64964886]
[1747447239407,5.44629349,165.25,165.19,24.70322252]
[1747447240227,5.44539277,165.28,165.19,24.70322252]
[1747447240560,5.44464609,165.3,165.23,44.64964886]
[1747447240853,5.44464609,165.3,165.25,18.64964886]
[1747447241051,17.82868652,165.3,165.24,1.6116]
[1747447241760,5.44365813,165.33,165.26,26.0]
[1747447242054,5.44365813,165.33,165.27,18.64964886]
[1747447242240,17.8273973,165.34,165.27,18.64964886]
[1747447243529,30.8,165.36,165.27,24.70033626]
[1747447243530,5.44303111,165.35,165.27,24.70033626]
[1747447243824,5.44201233,165.38,165.27,51.24033626]
[1747447244036,5.44201233,165.38,165.31,18.64964886]
[1747447244835,5.44201233,165.38,165.32,1.5747]
[1747447245038,5.44175023,165.39,165.33,18.64964886]
[1747447245743,5.44130407,165.41,165.33,50.69804704]
[1747447245939,17.8253445,165.41,165.33,50.69804704]
[1747447246862,30.8,165.43,165.33,50.69804704]
[1747447246863,12.38404043,165.4,165.33,44.64964886]
[1747447247234,12.38404043,165.38,165.33,26.0]
[1747447247460,12.38404043,165.39,165.33,26.0]
[1747447247869,19.04243742,165.42,165.33,26.0]
[1747447248176,5.4406964,165.42,165.37,26.0]
[1747447248362,17.82473683,165.42,165.35,26.0]
[1747447248683,12.38404043,165.39,165.33,44.64964886]
[1747447248978,12.38404043,165.35,165.28,27.834]
[1747447249171,12.38404043,165.35,165.28,53.834]
[1747447249678,5.44267053,165.36,165.28,53.834]
[1747447249679,12.38404043,165.33,165.28,53.834]
[1747447249880,12.38404043,165.32,165.28,1.614]
[1747447250056,12.38404043,165.32,165.26,32.094]
[1747447250242,31.4333873,165.36,165.24,1.614]
[1747447250449,12.38404043,165.32,165.24,1.614]
[1747447250752,12.38404043,165.3,165.26,26.0]
[1747447251185,5.44490729,165.3,165.26,26.0]
[1747447251881,17.82844046,165.31,165.27,26.0]
[1747447252187,5.44440003,165.31,165.27,26.0]
[1747447252649,5.44399147,165.32,165.27,26.0]
[1747447253179,12.38404043,165.33,165.27,26.0]
[1747447253346,17.82760844,165.34,165.27,18.64964886]
[1747447253773,5.44356801,165.34,165.27,18.64964886]
[1747447253987,17.82760844,165.34,165.27,18.64964886]
[1747447254146,12.38404043,165.33,165.27,18.64964886]
[1747447254490,5.44299318,165.36,165.27,24.70022011]
[1747447254662,12.38404043,165.35,165.27,50.70022011]
[1747447255506,5.44332889,165.34,165.27,50.70022011]
[1747447256510,13.6063528,165.37,165.27,50.70022011]
[1747447256678,12.38404043,165.35,165.27,50.70022011]
[1747447256880,12.38404043,165.34,165.27,44.64964886]
[1747447257376,12.38404043,165.35,165.27,44.64964886]
[1747447257714,13.6063528,165.37,165.27,44.64964886]
[1747447257877,13.6063528,165.37,165.27,50.70017953]
[1747447258087,12.38404043,165.35,165.27,50.70017953]
[1747447258591,17.82730217,165.35,165.27,50.70017953]
[1747447260270,12.38404043,165.34,165.27,26.0]
[1747447260487,12.38404043,165.31,165.26,26.0]
[1747447260691,19.05076098,165.35,165.19,1.6219]
[1747447260692,12.38404043,165.27,165.19,1.6219]
[1747447260979,12.38404043,165.2,165.13,6.252]
[1747447261178,12.38404043,165.19,165.13,32.252]
[1747447261815,26.0,165.25,165.16,26.0]
[1747447262098,12.38404043,165.2,165.13,6.252]
[1747447262300,5.4489314,165.17,165.11,1.6219]
[1747447262481,5.4489314,165.17,165.13,26.0]
[1747447262687,12.38404043,165.18,165.14,26.0]
[1747447262688,5.4486629,165.18,165.14,26.0]
[1747447263607,17.83206884,165.2,165.14,18.64964886]
[1747447263783,12.38404043,165.22,165.14,18.64964886]
[1747447263978,12.38404043,165.19,165.14,18.64964886]
[1747447264206,12.38404043,165.19,165.13,26.0]
[1747447264700,12.38404043,165.18,165.13,26.0]
[1747447265196,19.06433456,165.23,165.13,26.0]
[1747447265397,12.38404043,165.19,165.13,26.0]
[1747447265883,5.44860152,165.18,165.13,26.0]
[1747447266078,12.38404043,165.16,165.11,1.6219]
[1747447266310,12.38404043,165.15,165.09,32.252]
[1747447266510,12.38404043,165.13,165.06,1.5199]
[1747447266720,12.38404043,165.12,165.06,7.57821525]
[1747447266895,12.38404043,165.14,165.07,26.0]
[1747447267780,5.45025131,165.13,165.08,18.64964886]
[1747447267983,12.38404043,165.15,165.08,18.64964886]
[1747447268284,12.38404043,165.14,165.08,18.64964886]
[1747447268686,12.38404043,165.13,165.08,26.0]
[1747447269932,5.45058139,165.12,165.08,26.0]
[1747447270138,12.38404043,165.11,165.06,1.5199]
[1747447270422,12.38404043,165.11,165.05,32.05875579]
[1747447270598,12.38404043,165.11,165.05,26.0]
[1747447271123,12.38404043,165.08,165.02,1.6207]
[1747447271313,83.4410753,165.12,165.01,11.31355257]
[1747447271515,12.38404043,165.08,165.01,43.37358943]
[1747447271705,12.38404043,165.09,165.01,43.37358943]
[1747447272023,51.98,165.12,165.02,18.64964886]
[1747447272200,38.36404043,165.12,165.02,18.64964886]
[1747447272401,43.81476552,165.12,165.02,18.64964886]
[1747447272619,12.38404043,165.1,165.02,18.64964886]
[1747447272924,12.38404043,165.09,165.02,18.64964886]
[1747447274025,17.83563176,165.09,165.02,24.70917238]
[1747447274324,12.38404043,165.08,165.02,18.64964886]
[1747447274496,12.38404043,165.05,165.01,11.31355257]
[1747447274692,20.709121,165.09,165.01,11.31355257]
[1747447274895,12.38404043,165.07,165.01,11.31355257]
[1747447275110,20.709121,165.09,165.01,17.37368646]
[1747447275111,5.45159133,165.09,165.01,17.37368646]
[1747447275293,5.45117426,165.11,165.02,18.64964886]
[1747447275496,12.38404043,165.1,165.02,18.64964886]
[1747447275902,17.83544861,165.1,165.03,6.05950433]
[1747447276328,12.38404043,165.08,165.02,18.64964886]
[1747447276627,5.45140818,165.1,165.02,18.64964886]
[1747447276628,12.38404043,165.09,165.02,18.64964886]
[1747447276928,12.38404043,165.09,165.02,24.70942778]
[1747447277428,25.98,165.12,165.03,26.0]
[1747447277637,12.38404043,165.13,165.06,18.64964886]
[1747447278043,17.83449548,165.13,165.06,24.7078725]
[1747447278249,5.45045505,165.13,165.06,26.3702725]
[1747447279747,12.38404043,165.12,165.06,20.31204886]
[1747447279950,12.38404043,165.12,165.04,6.05884477]
[1747447279951,12.38404043,165.1,165.03,26.0]
[1747447280151,12.38404043,165.09,165.03,26.0]
[1747447280515,12.38404043,165.09,165.03,32.05935138]
[1747447280715,12.38404043,165.09,165.03,18.64964886]
[1747447281436,12.38404043,165.08,165.02,162.3624]
[1747447281732,17.83715935,165.05,165.01,11.31355257]
[1747447282109,5.45311892,165.05,165.01,11.31355257]
[1747447282321,26.0,165.1,165.01,11.31355257]